Cogmind - Beta 14 @@@ ROGUE MODE // 2024.08.23 @ 20:36:35 Player: alexustasu Result: Self-destructed Performance ------------- Evolutions (1) 500 Regions Visited (3) 600 Robots Destroyed (36) 180 Value Destroyed (750) 750 Prototype IDs (2) 40 Alien Tech Used (0) 0 Bonus (0) 0 TOTAL SCORE: 2070 Bonus ------- None Cogmind --------- Core Integrity 59/400 Matter 245/300 Energy 101/250 System Corruption 2% Temperature Cool (0) Movement Core (450) Ox8 Location -9/Mines Parts ------- > --- POWER (1) -------- Ion Engine > --- PROPULSION (3) --- (None) > --- UTILITY (3) ------ Heat Sink Medium Storage Unit Field Recycling Unit > --- WEAPON (2) ------- Small Laser > --- INVENTORY (10) --- Combat Airjet Heat Sink Medium Storage Unit Visual Processing Unit Improved Signal Interpreter Improved Light Armor Plating Tractor Beam Peak State ------------ > --- POWER ------------ Ion Engine > --- PROPULSION ------- Aluminum Leg Aluminum Leg Aluminum Leg > --- UTILITY ---------- Heat Sink Medium Storage Unit Field Recycling Unit > --- WEAPON ----------- Light Cannon Improved Light Cannon > --- INVENTORY -------- Ion Engine Heat Sink Medium Storage Unit Visual Processing Unit Improved Signal Interpreter Improved Light Armor Plating Tractor Beam Small Laser Shotgun [Rating: 12] Favorites ----------- Power Ion Engine Engine Ion Engine Propulsion Aluminum Leg Leg Aluminum Leg Utility Medium Storage Unit Device Heat Sink Storage Medium Storage Unit Processor Targeting Computer Weapon Assault Rifle Energy Gun Small Laser Ballistic Gun Assault Rifle Ballistic Cannon Light Cannon Build | -11 -10 -9 -9 ------- Run | Yrd Mat Mat Min Slots Evolved 2 | . . 2 . Power . | . . . . Propulsion 1 | . . 1 . Utility 1 | . . 1 . Weapon . | . . . . Parts Attached 27 | 6 10 7 4 Power 4 | 1 1 1 1 Engine 4 | 1 1 1 1 Core . | . . . . Reactor . | . . . . Propulsion 7 | 2 3 2 . Treads . | . . . . Leg 7 | 2 3 2 . Wheel . | . . . . Hover . | . . . . Flight . | . . . . Utility 8 | 1 5 2 . Device 4 | . 2 2 . Storage 2 | 1 1 . . Processor 2 | . 2 . . Hackware . | . . . . Protection . | . . . . Artifact . | . . . . Weapon 8 | 2 1 2 3 Energy Gun 3 | 1 1 . 1 Energy Cannon . | . . . . Ballistic Gun 2 | 1 . . 1 Ballistic Cannon 3 | . . 2 1 Launcher . | . . . . Special Weapon . | . . . . Impact Weapon . | . . . . Slashing Weapon . | . . . . Piercing Weapon . | . . . . Special Melee Weapon . | . . . . Unidentified Prototypes . | . . . . Parts Lost 9 | . 1 . 8 Power 1 | . . . 1 Propulsion 3 | . . . 3 Utility 1 | . 1 . . Weapon 4 | . . . 4 Highest Loss Streak 5 | . 1 . 5 To Critical Strikes . | . . . . Average Slot Usage (%) 94 | . 93 99 89 Engine 12 | . 14 11 10 Leg 28 | . 28 33 24 Device 15 | . 5 21 22 Storage 12 | . 14 11 11 Processor 1 | . 2 . . Energy Gun 6 | . 14 2 1 Ballistic Gun 8 | . 14 8 1 Ballistic Cannon 8 | . . 11 18 Peak Build Rating 12 | 6 8 12 12 Average Rating 9 | 4 7 11 11 On Entrance 6 | . 6 8 12 Naked Turns . | . . . . Heaviest Build 31 | 13 23 31 31 Greatest Support 30 | 20 20 30 30 Greatest Overweight (x) 10 | 3 1 1 10 Average Overweight (x) . | . . . 1 Largest Inventory Capacity 10 | 8 10 10 10 Average Capacity 9 | 7 9 10 10 Most Carried 10 | 4 10 10 10 Average Carried 8 | 2 8 9 9 Final Capacity 10 | 8 10 10 10 Final Carried 10 | 4 10 10 7 Class Distribution -------------------- 90% | Mutant 9% | Scavenger-Mutant Dominant Class ---------------- Mutant | -10/Materials Mutant | -9/Materials Mutant | -9/Mines Resources | -11 -10 -9 -9 ----------- Run | Yrd Mat Mat Min Matter Collected 647 | 239 204 131 73 Remotely . | . . . . Salvage Created 1063 | . 515 337 211 Parts 72 | . 39 27 6 Haulers Intercepted . | . . . . Recyclers Shooed . | . . . . Parts Field Recycled 29 | . . 29 . Retrieved Matter 231 | . . 231 . Parts Self-Destructed . | . . . . Prevented . | . . . . Kills | -11 -10 -9 -9 ------- Run | Yrd Mat Mat Min Combat Hostiles Destroyed 36 | . 15 11 10 Guns 26 | . 15 7 4 Cannons 10 | . . 4 6 Classes Destroyed 10 | . 4 4 2 Worker 2 | . . 1 1 Builder 1 | . . 1 . Recycler 2 | . . 1 1 Operator 1 | . 1 . . Watcher 1 | . 1 . . Swarmer 15 | . 6 8 1 Grunt 10 | . 9 1 . Sentry 2 | . . 2 . Demolisher 2 | . . . 2 Assembled 7 | . . . 7 Best Kill Streak 9 | . 3 5 9 Combat Bots Only 7 | . 3 4 7 Max Kills in Single Turn 1 | . 1 1 1 Gunslinging . | . . . . Exploded . | . . . . Melee . | . . . . Uniques/NPCs Destroyed . | . . . . Combat | -11 -10 -9 -9 -------- Run | Yrd Mat Mat Min Hostile Shots Fired 149 | . 38 43 68 Missed 38 | . 10 11 17 Damage Taken 1721 | . 264 295 1162 Core 372 | . 31 70 271 Absorbed by Shields . | . . . . Core Remaining (%) 93 | 100 87 . . Volleys Fired 101 | . 36 30 35 Largest 2 | . 2 2 2 Hottest 79 | . 60 74 79 Shots Fired 199 | . 72 60 67 Gun 137 | . 72 38 27 Cannon 62 | . . 22 40 Launcher . | . . . . Special . | . . . . Kinetic 139 | . 36 50 53 Thermal 60 | . 36 10 14 Explosive . | . . . . Electromagnetic . | . . . . Robot Hit Streak 12 | . 12 8 6 Robot Miss Streak 4 | . 4 3 3 Penetration Max . | . . . . Secondary Targets . | . . . . Shots Hit Robots 122 | . 48 37 37 Core Hits 67 | . 30 18 19 Critical Kills . | . . . . Critical Parts Destroyed . | . . . . Critical Strikes 1 | . . . 1 Blast 1 | . . . 1 Melee Attacks . | . . . . Impact . | . . . . Slashing . | . . . . Piercing . | . . . . Sneak Attacks . | . . . . Combat Hostiles . | . . . . Follow-up Attacks . | . . . . Damage Inflicted 1675 | . 580 496 599 Guns 1066 | . 567 298 201 Cannons 596 | . . 198 398 Explosions . | . . . . Melee . | . . . . Ramming 13 | . 13 . . Kinetic 1201 | . 306 409 486 Thermal 461 | . 261 87 113 Explosive . | . . . . Electromagnetic . | . . . . Impact . | . . . . Slashing . | . . . . Piercing . | . . . . Highest Corruption 2 | . . . 2 Average Corruption 2 | . . . 2 Corruption Purged . | . . . . Corruption Blocked . | . . . . Overload Shots . | . . . . Overflow Damage 24 | . . 19 5 Projectiles 24 | . . 19 5 Explosions . | . . . . Melee . | . . . . Knockbacks 7 | . . 2 5 Impact . | . . . . Kinetic 6 | . . 1 5 Secondary 1 | . . 1 . Self-Inflicted Damage . | . . . . Shots . | . . . . Rammed . | . . . . Targets Rammed 5 | . 5 . . Kicked 5 | . 5 . . Crushed . | . . . . Highest Temperature 18 | . 18 6 14 Average Temperature 10 | . 11 4 8 Received Heat Transfer 195 | . 69 66 60 Siege Activations . | . . . . Robots Corrupted . | . . . . Combat Hostiles . | . . . . Parts Fried . | . . . . Impact Corruptions . | . . . . Robots Melted . | . . . . Combat Hostiles . | . . . . Parts Melted 1 | . 1 . . Heat Transferred 1050 | . 600 200 250 Parts Sabotaged . | . . . . Parts Stolen . | . . . . Parts Stripped . | . . . . Power Chain Reactions . | . . . . Alert | -11 -10 -9 -9 ------- Run | Yrd Mat Mat Min Peak Influence 364 | . 299 364 171 Initial 126 | . . 53 126 Average 168 | . 158 233 118 Maximum Alert Level 1 | . 1 1 . Low Security (%) 65 | 100 62 40 100 Level 1 34 | . 37 59 . Level 2 . | . . . . Level 3 . | . . . . Level 4 . | . . . . Level 5 . | . . . . High Security . | . . . . Max Security . | . . . . Squads Dispatched 4 | . 3 1 . Investigation 2 | . 1 1 . Extermination . | . . . . Reinforcement 2 | . 2 . . Assault . | . . . . Garrison . | . . . . Intercept . | . . . . Searches Triggered . | . . . . Construction Impeded . | . . . . Haulers Reinforced . | . . . . Active Scanning Responses . | . . . . Cargo Convoy Interrupts . | . . . . Stealth | -11 -10 -9 -9 --------- Run | Yrd Mat Mat Min Distress Signals 5 | . 4 1 . Communications Jammed . | . . . . Distress Signals . | . . . . Times Spotted 57 | . 21 24 12 Peak Tracking Total 5 | . 5 5 3 Tactical Retreats 6 | . 2 4 . Traps | -11 -10 -9 -9 ------- Run | Yrd Mat Mat Min Traps Triggered 2 | . 1 1 . Indirectly . | . . . . Trap Hack Attempts . | . . . . Triggered . | . . . . Disarmed . | . . . . Reprogrammed . | . . . . Reused . | . . . . Traps Extracted . | . . . . Installed . | . . . . Triggered 1 | . . . 1 Machines | -11 -10 -9 -9 ---------- Run | Yrd Mat Mat Min Machines Disabled . | . . . . Max in Single Turn . | . . . . Machines Repaired . | . . . . Machines Dismantled . | . . . . Machines Sabotaged . | . . . . Overloaded Fab Kills . | . . . . Hacking | -11 -10 -9 -9 --------- Run | Yrd Mat Mat Min Machines Accessed 7 | . 4 3 . Terminals 5 | . 3 2 . Fabricators . | . . . . Repair Stations . | . . . . Recycling Units 2 | . 1 1 . Scanalyzers . | . . . . Garrison Access . | . . . . Total Hacks 12 | . 7 5 . Successful 9 | . 6 3 . Failed 3 | . 1 2 . Catastrophic . | . . . . Database Lockouts . | . . . . Manual . | . . . . Terminals 9 | . 5 4 . Fabricators . | . . . . Repair Stations . | . . . . Recycling Units 3 | . 2 1 . Scanalyzers . | . . . . Garrison Access . | . . . . Terminal Hacks 7 | . 5 2 . Prototype ID Bank 1 | . 1 . . Alert Level 3 | . 2 1 . Unreport Threat 1 | . 1 . . Locate Traps 2 | . 1 1 . Fabricator Hacks . | . . . . Repair Station Hacks . | . . . . Recycling Unit Hacks 2 | . 1 1 . Report Inventory 2 | . 1 1 . Scanalyzer . | . . . . Garrison Access Hacks . | . . . . Unauthorized Hacks . | . . . . Terminals . | . . . . Fabricators . | . . . . Repair Stations . | . . . . Recycling Units . | . . . . Scanalyzers . | . . . . Garrison Access . | . . . . Data Cores Recovered . | . . . . Used . | . . . . Hacking Detections 4 | . 2 2 . Full Trace Events . | . . . . Feedback Events . | . . . . Feedback Blocked . | . . . . Robot Schematics Acquired . | . . . . Robots Built . | . . . . Authchips . | . . . . Time . | . . . . Total Robot Build Rating . | . . . . Part Schematics Acquired . | . . . . Parts Built . | . . . . Authchips . | . . . . Time . | . . . . Total Part Build Rating . | . . . . Parts Repaired . | . . . . Time . | . . . . Parts Recycled . | . . . . Recycled Matter . | . . . . Retrieved Matter . | . . . . Retrieved Components . | . . . . Parts Scanalyzed . | . . . . Part Schematics Acquired . | . . . . Parts Damaged . | . . . . Bothacking | -11 -10 -9 -9 ------------ Run | Yrd Mat Mat Min Used RIF Installer . | . . . . Robots Hacked . | . . . . Non-combat . | . . . . Combat . | . . . . Robot Hacks Applied . | . . . . Relay Couplers Released . | . . . . Fabnet Peak Effective % . | . . . . Robots Rewired . | . . . . Allies Hacked . | . . . . Hacks Repelled . | . . . . Allies | -11 -10 -9 -9 -------- Run | Yrd Mat Mat Min Total Allies . | . . . . Largest Group . | . . . . Highest-Rated Group . | . . . . Highest-Rated Ally . | . . . . Total Orders . | . . . . Ally Attacks . | . . . . Total Damage . | . . . . Kills . | . . . . Allies Corrupted . | . . . . Allies Melted . | . . . . Intel | -11 -10 -9 -9 ------- Run | Yrd Mat Mat Min Robot Analysis Total . | . . . . Derelict Logs Recovered 1 | . . . 1 Drone Launches . | . . . . Drone Recoveries . | . . . . Exploration | -11 -10 -9 -9 ------------- Run | Yrd Mat Mat Min Turns Passed 1983 | 62 768 654 499 Spaces Moved 1039 | 43 443 362 191 Core 19 | 11 . . 8 Treads . | . . . . Legs 1020 | 32 443 362 183 Wheels . | . . . . Hover . | . . . . Flight . | . . . . Fastest Speed 50 | 50 120 120 190 Average Speed 140 | 114 120 135 202 Slowest Speed 550 | 200 190 190 550 Overloaded Moves . | . . . . Propulsion Burnouts . | . . . . Robots Hopped . | . . . . Cave-ins Triggered . | . . . . Exploration Rate (%) 45 | 4 90 30 57 Regions Visited 3 Branch Regions 1 Pre-discovered Areas 1 | . . . 1 Known Exits Taken . | . . . . Unknown Exits Taken 3 | 1 1 1 . Scrap Searched . | . . . . Spaces Dug . | . . . . Terrain Destroyed 2 | . . . 2 Melee . | . . . . Projectile 2 | . . . 2 AOE . | . . . . Terrain Rammed . | . . . . Walls Destroyed . | . . . . Machines Disabled . | . . . . Actions | -11 -10 -9 -9 --------- Run | Yrd Mat Mat Min Total 1366 | 52 609 469 236 Wait 153 | . 90 58 5 Move 1036 | 42 442 361 191 Hop . | . . . . Pick Up 24 | 4 13 6 1 Fast Attach 11 | 6 4 1 . Attach 7 | . 1 2 4 Detach . | . . . . Swap 9 | . 5 4 . Drop 20 | . 13 7 . Fire 101 | . 36 30 35 Melee . | . . . . Ram . | . . . . Kick 5 | . 5 . . Crush . | . . . . Escape Stasis . | . . . . Rewire . | . . . . Trap . | . . . . Miscellaneous . | . . . . Route ------- -11/Scrapyard -10/Materials (discovered 4 exits: *Mat x2 / [*Min x2]) -9/Materials -9/Mines History --------- Turn | Location | Event 13 | -11/Scrapyard | Discovered new exit (range 15) 63 | -11/Scrapyard | Entered Materials 216 | -10/Materials | Discovered new exit (range 12) 303 | -10/Materials | Discovered new exit (range 12) 322 | -10/Materials | Build established: Mutant 510 | -10/Materials | Discovered new exit (range 15) 778 | -10/Materials | Discovered new exit (range 11) 831 | -10/Materials | Entered another Materials area 831 | -9/Materials | Evolved 2 slots: Propulsion x1, Utility x1 1476 | -9/Materials | Discovered new exit (range 6) 1485 | -9/Materials | Entered Mines 1721 | -9/Mines | Learned location of Storage (-7) 1833 | -9/Mines | Assembled infested the area 1892 | -9/Mines | Lost 5 parts (3n2w) 1905 | -9/Mines | Core integrity fell below 50% 1945 | -9/Mines | Destroyed 7 combat bots 1971 | -9/Mines | Core integrity fell below 20% 1984 | -9/Mines | Self-destructed Last Messages --------------- as-40229 sneak attacks. T-07 Excavator knocked back. U-05 Engineer lays Concrete. K-01 Serf collects debris. T-07 Excavator system corrupted by crushing effect. U-05 Engineer lays Concrete. U-05 Engineer builds a Wall. as-10155 destroyed. K-01 Serf collects debris. Acquired 11 matter. U-05 Engineer builds a Wall. K-01 Serf collects debris. Imp. Light Cannon destroyed. System corrupted by crushing effect (+2). Knocked back. The unstable cave ceiling collapses. 3 Matter crushed. U-05 Engineer lays Concrete. U-05 Engineer builds a Wall. K-01 Serf collects debris. Map ----- +----------------------------------------------------+ | ???????????????????????????????????????? | | ???????????????????????????????????????? | | ???????????????????????????????????????? | | ???????????????????????????????????????? | | ???????????????????????????????????????? | | ???????????????????????????????????????? | | ???????????????????????????????????????? | | ???????????????????????????????????????? | | ???????????????????????????????????????? | | ???????????????????????????????????????? | | ???????????????????????????????????????? | | ???????????????????????????????????????? | | ???????????????????????????????????????? | | ???????????????????????????????????????? | | ???????????????????????????????????????? | | ?????# ????????????????????????????????? | | ?????# ????????????????????????????????? | | ?????# ???????????????????????????????? | | ?????# ???????????????????????????????? | | ?????# #??????????????????????????????? | | ?????# %#?????????????????????????????? | | ?????# $ ?????????????????????????????? | | ?????# #????????????????????????????? | | ??????# % ####????????????????????????? | | ???????# r#%###??#???????????????????? | | ???????# % k=@#? #?????????????????##? | | ???????# %% rta##%###### #??????## | | ?????#### #u#%=][% #??????# | | ????## # #=]%!* % #????## | | ????# ##k# ===#### ### ##### | | ???## ##% #?# #????? | | ??## # ## ##?# ##????? | | ??# ## ## # # ### ##????? | | ??# # # ## ##????? | | ??## # # #### % ##????? | | ???### # #### % #?????# ## | | ?????## #?????# #?# | | ??????# #?????# #??? | | ??????# ####### ##????# #??? | | ??????# ###?????## ###### #### | | ?????## ##????????# | | ???### #????????## ### | | ??## ##????????# #########?# | | ??# ##?????????# #?????????# | | ??# ##??????????# ##????????# | | ??## #???????????## ##???????# | | ???## ##????????????## ##??????# | | ????######??????????????# ##????? | | ????????????????????????# % ####?? | | ???????########?????##### ##? | +----------------------------------------------------+ Best States ------------- Heat Dissipation 38 Energy Generation 10 Energy Capacity 250 Matter Stores 300 Matter Capacity 300 Sight Range 16 Robot Scan Range 14 Terrain Scan Density 10 Evasion (%) 55 Targeting Accuracy 5 Item Schematics ----------------- None Robot Schematics ------------------ None Fabricated ------------ Nothing Alien Tech Used ----------------- None Achievements -------------- None Challenges ------------ None Game ------ Seed NodeMetafiberComputer Manual? 0 Play Time 00:32:42 Cumulative 17.8 hours Start 2024.08.23 @ 20:04:02 End 2024.08.23 @ 20:36:35 Sessions 1 Manual Loads 0 Difficulty Rogue Special Mode None Game No. 21 Rogue 21 Adventurer 0 Explorer 0 Win Type - Total 0 Types 0/0/0/0/0/0/0/0/0 Lore% 11 Gallery% 21 Achievement% 16 Wizard Run 0 Options --------- Layout 0 ASCII 0 Keyboard 0 Movement Mouse Keybinds 0 Fullscreen 1 Font 24/Smallcaps Map View 56x25 Zoom Use 94% Tactical HUD 0 Map Filters NONE Filters NONE Steam 1 RUN: ccd0f5f4-fa3e-4450-9ed3-cc0a9d9634a9